[Event "*** SCC Grand Prix: Titled Tuesday Blitz"]
[Site "Chess.com"]
[Date "2020.09.29"]
[Round "10"]
[White "Nachsueb"]
[Black "WinstonSilvakov"]
[Result "1-0"]
[WhiteElo "2036"]
[BlackElo "2130"]
[TimeControl "180+1"]
[EndTime "11:57:37 PDT"]
[Termination "Nachsueb won by resignation"]

1. c4 {[%clk 0:02:58]} 1... Nf6 {[%clk 0:03:00.8]} 2. Nc3 {[%clk 0:02:57.5]}
2... c5 {[%clk 0:03:01.2]} 3. g3 {[%clk 0:02:56]} 3... h5 {[%clk 0:02:59.4]} 4.
Bg2 {[%clk 0:02:54.9]} 4... Nc6 {[%clk 0:02:58.5]} 5. h4 {[%clk 0:02:54.2]} 5...
d6 {[%clk 0:02:58.4]} 6. e4 {[%clk 0:02:54.1]} 6... Bd7 {[%clk 0:02:56.5]} 7.
Nge2 {[%clk 0:02:53.9]} 7... e5 {[%clk 0:02:56]} 8. d3 {[%clk 0:02:53.2]} 8...
Qc8 {[%clk 0:02:56.4]} 9. Rb1 {[%clk 0:02:50.4]} 9... a5 {[%clk 0:02:55.1]} 10.
Bg5 {[%clk 0:02:44.8]} 10... Be6 {[%clk 0:02:48.1]} 11. Bxf6 {[%clk 0:02:38.7]}
11... gxf6 {[%clk 0:02:48.1]} 12. Nd5 {[%clk 0:02:39.3]} 12... Bxd5 {[%clk
0:02:48]} 13. cxd5 {[%clk 0:02:34.8]} 13... Nd4 {[%clk 0:02:48.1]} 14. Nxd4
{[%clk 0:02:19.6]} 14... cxd4 {[%clk 0:02:46.5]} 15. O-O {[%clk 0:02:12.9]}
15... Bh6 {[%clk 0:02:40]} 16. Kh2 {[%clk 0:02:10.8]} 16... Qg4 {[%clk
0:02:32.1]} 17. Qa4+ {[%clk 0:02:09.7]} 17... Qd7 {[%clk 0:02:32]} 18. Qb3
{[%clk 0:02:05.5]} 18... Rc8 {[%clk 0:02:28]} 19. Bh3 {[%clk 0:02:05.2]} 19...
Qd8 {[%clk 0:02:26.3]} 20. Qb5+ {[%clk 0:01:54.7]} 20... Kf8 {[%clk 0:02:24.7]}
21. Bxc8 {[%clk 0:01:51.2]} 21... Qxc8 {[%clk 0:02:24.8]} 22. Qxa5 {[%clk
0:01:51.3]} 22... Qd7 {[%clk 0:02:24.9]} 23. Qb4 {[%clk 0:01:32.5]} 23... Kg7
{[%clk 0:02:19.8]} 24. a4 {[%clk 0:01:28.8]} 24... Rc8 {[%clk 0:02:19.3]} 25. a5
{[%clk 0:01:16.8]} 25... Rc2 {[%clk 0:02:13.3]} 26. Qb3 {[%clk 0:01:09.2]} 26...
Rd2 {[%clk 0:02:12.3]} 27. Rbd1 {[%clk 0:01:07.2]} 27... Re2 {[%clk 0:02:09.9]}
28. Rde1 {[%clk 0:00:46.8]} 28... Rd2 {[%clk 0:02:08.9]} 29. Rd1 {[%clk
0:00:26.5]} 29... Re2 {[%clk 0:02:08.6]} 30. Kg2 {[%clk 0:00:23.6]} 30... Qg4
{[%clk 0:02:04.3]} 31. Rfe1 {[%clk 0:00:23.1]} 31... Bd2 {[%clk 0:01:36.6]} 32.
Rxe2 {[%clk 0:00:18.6]} 32... Qxe2 {[%clk 0:01:36.6]} 33. Rf1 {[%clk 0:00:19.1]}
33... Bxa5 {[%clk 0:01:34.8]} 34. Qd1 {[%clk 0:00:18.2]} 34... Qxb2 {[%clk
0:01:26.9]} 35. Qxh5 {[%clk 0:00:16.5]} 35... Qc2 {[%clk 0:01:25.9]} 36. Qg4+
{[%clk 0:00:15.8]} 36... Kf8 {[%clk 0:01:25.7]} 37. Qf3 {[%clk 0:00:16.2]} 37...
Bd2 {[%clk 0:01:22.9]} 38. Qxf6 {[%clk 0:00:15.8]} 38... Qxd3 {[%clk 0:01:22.7]}
39. Qxd6+ {[%clk 0:00:15.9]} 39... Kg8 {[%clk 0:01:19.2]} 40. Qd8+ {[%clk
0:00:16.1]} 40... Kg7 {[%clk 0:01:17.6]} 41. Qg5+ {[%clk 0:00:15.2]} 41... Kf8
{[%clk 0:01:16.9]} 42. Qf5 {[%clk 0:00:13.3]} 42... b5 {[%clk 0:01:12.8]} 43. d6
{[%clk 0:00:13.2]} 43... Ba5 {[%clk 0:01:11.3]} 44. Qc8+ {[%clk 0:00:10]} 44...
Kg7 {[%clk 0:01:10.9]} 45. Qg4+ {[%clk 0:00:10.2]} 45... Kf8 {[%clk 0:01:10.4]}
46. d7 {[%clk 0:00:10.3]} 46... b4 {[%clk 0:01:03.1]} 47. Qf3 {[%clk 0:00:09.8]}
47... Qb5 {[%clk 0:01:01.4]} 48. Qf5 {[%clk 0:00:09]} 48... Ke7 {[%clk
0:00:42.2]} 49. h5 {[%clk 0:00:08.8]} 49... b3 {[%clk 0:00:38.5]} 50. h6 {[%clk
0:00:08.1]} 50... b2 {[%clk 0:00:38.4]} 51. Qg5+ {[%clk 0:00:05.8]} 51... Kxd7
{[%clk 0:00:37.2]} 52. Qg4+ {[%clk 0:00:05.3]} 52... Ke7 {[%clk 0:00:36.4]} 53.
h7 {[%clk 0:00:02]} 53... Qxf1+ {[%clk 0:00:35.3]} 54. Kxf1 {[%clk 0:00:02.9]}
54... b1=Q+ {[%clk 0:00:35.2]} 55. Kg2 {[%clk 0:00:03.5]} 55... Qb8 {[%clk
0:00:35.1]} 56. Qh4+ {[%clk 0:00:03.4]} 56... Kd7 {[%clk 0:00:33.3]} 57. h8=Q
{[%clk 0:00:04.3]} 57... Qb7 {[%clk 0:00:31.3]} 58. Qxe5 {[%clk 0:00:03.2]}
58... Bc7 {[%clk 0:00:29.2]} 59. Qhe7+ {[%clk 0:00:03.3]} 59... Kc8 {[%clk
0:00:27.5]} 60. Qf5+ {[%clk 0:00:03.6]} 60... Kb8 {[%clk 0:00:27]} 61. Qe8+
{[%clk 0:00:04.1]} 61... Ka7 {[%clk 0:00:27]} 62. Qa4+ {[%clk 0:00:04.3]} 62...
Kb8 {[%clk 0:00:27.1]} 63. Qd5 {[%clk 0:00:03.8]} 63... Bb6 {[%clk 0:00:25.9]}
64. Qxb7+ {[%clk 0:00:03.2]} 64... Kxb7 {[%clk 0:00:26.8]} 65. Qd7+ {[%clk
0:00:03.4]} 65... Ka6 {[%clk 0:00:26.7]} 66. Qxf7 {[%clk 0:00:03.3]} 66... d3
{[%clk 0:00:26.8]} 67. Qd5 {[%clk 0:00:03.7]} 67... d2 {[%clk 0:00:25]} 68. Qxd2
{[%clk 0:00:04.6]} 1-0

[Event "*** SCC Grand Prix: Titled Tuesday Blitz"]
[Site "Chess.com"]
[Date "2020.09.29"]
[Round "10"]
[White "LionTheLeon_06"]
[Black "c_r_e_e_p_e_r"]
[Result "1-0"]
[WhiteElo "2610"]
[BlackElo "2384"]
[TimeControl "180+1"]
[EndTime "11:57:45 PDT"]
[Termination "LionTheLeon_06 won by resignation"]

1. Nf3 {[%clk 0:03:00.9]} 1... c5 {[%clk 0:02:59.9]} 2. b3 {[%clk 0:03:00.3]}
2... b6 {[%clk 0:03:00.4]} 3. Bb2 {[%clk 0:02:59.1]} 3... Bb7 {[%clk 0:03:00.9]}
4. c4 {[%clk 0:02:58.5]} 4... e6 {[%clk 0:03:01.2]} 5. g3 {[%clk 0:02:58.8]}
5... Nf6 {[%clk 0:03:01.6]} 6. Bg2 {[%clk 0:02:59]} 6... d6 {[%clk 0:03:02.2]}
7. O-O {[%clk 0:02:59.2]} 7... Be7 {[%clk 0:03:02.7]} 8. d4 {[%clk 0:02:59.5]}
8... cxd4 {[%clk 0:03:03.6]} 9. Nxd4 {[%clk 0:02:58.5]} 9... Bxg2 {[%clk
0:03:04.1]} 10. Kxg2 {[%clk 0:02:59.4]} 10... Qc8 {[%clk 0:03:04.5]} 11. Nc3
{[%clk 0:02:59.4]} 11... a6 {[%clk 0:03:04.7]} 12. e4 {[%clk 0:02:58.6]} 12...
Qb7 {[%clk 0:03:05]} 13. f3 {[%clk 0:02:58.6]} 13... Nbd7 {[%clk 0:03:05.3]} 14.
Qe2 {[%clk 0:02:58.7]} 14... O-O {[%clk 0:03:05.7]} 15. Rfd1 {[%clk 0:02:58]}
15... Rfe8 {[%clk 0:03:06.2]} 16. Rac1 {[%clk 0:02:58.2]} 16... Rad8 {[%clk
0:03:06.4]} 17. Qc2 {[%clk 0:02:51.9]} 17... Bf8 {[%clk 0:03:06.7]} 18. Re1
{[%clk 0:02:52.1]} 18... Rc8 {[%clk 0:03:07.1]} 19. Qd2 {[%clk 0:02:51.5]} 19...
g6 {[%clk 0:03:06.1]} 20. Rcd1 {[%clk 0:02:48.1]} 20... Rcd8 {[%clk 0:03:05.1]}
21. Ba3 {[%clk 0:02:45.1]} 21... Nc5 {[%clk 0:03:03.8]} 22. Qc2 {[%clk
0:02:41.4]} 22... Bg7 {[%clk 0:03:01.2]} 23. Qd2 {[%clk 0:02:25]} 23... Nfd7
{[%clk 0:02:54.9]} 24. Bb2 {[%clk 0:02:19.2]} 24... Ne5 {[%clk 0:02:54.1]} 25.
Qc2 {[%clk 0:02:19.2]} 25... h5 {[%clk 0:02:33.8]} 26. Bc1 {[%clk 0:02:10.2]}
26... Rc8 {[%clk 0:02:27.4]} 27. Qe2 {[%clk 0:01:51.9]} 27... Nc6 {[%clk
0:02:12.5]} 28. Be3 {[%clk 0:01:44.1]} 28... h4 {[%clk 0:01:39.2]} 29. Qd2
{[%clk 0:01:37]} 29... Ne5 {[%clk 0:01:37.3]} 30. Qe2 {[%clk 0:01:33.6]} 30...
Qe7 {[%clk 0:01:34.9]} 31. g4 {[%clk 0:01:15.6]} 31... Ned7 {[%clk 0:01:29.6]}
32. h3 {[%clk 0:01:15.3]} 32... g5 {[%clk 0:01:16]} 33. Qd2 {[%clk 0:01:14.3]}
33... f6 {[%clk 0:01:08.9]} 34. Nc2 {[%clk 0:00:59.8]} 34... Bf8 {[%clk
0:01:01.8]} 35. f4 {[%clk 0:00:50]} 35... gxf4 {[%clk 0:00:50.6]} 36. Bxf4
{[%clk 0:00:50.9]} 36... Ne5 {[%clk 0:00:51.4]} 37. Qe2 {[%clk 0:00:42.7]} 37...
Qf7 {[%clk 0:00:45.5]} 38. Nd4 {[%clk 0:00:42.7]} 38... Qg6 {[%clk 0:00:43.4]}
39. Rf1 {[%clk 0:00:42.7]} 39... Bg7 {[%clk 0:00:43.4]} 40. Bh2 {[%clk 0:00:27]}
40... Nf7 {[%clk 0:00:42.8]} 41. Kh1 {[%clk 0:00:24.6]} 41... Ng5 {[%clk
0:00:42.6]} 42. Qe3 {[%clk 0:00:19.3]} 42... Ncxe4 {[%clk 0:00:39]} 43. Nxe4
{[%clk 0:00:18.3]} 43... Qxe4+ {[%clk 0:00:37.4]} 44. Qxe4 {[%clk 0:00:18.7]}
44... Nxe4 {[%clk 0:00:38.3]} 45. Kg2 {[%clk 0:00:18.4]} 45... Nc3 {[%clk
0:00:30.2]} 46. Rd2 {[%clk 0:00:14.9]} 46... d5 {[%clk 0:00:30.3]} 47. cxd5
{[%clk 0:00:12.5]} 47... Nxd5 {[%clk 0:00:25.3]} 48. Re1 {[%clk 0:00:12.6]}
48... Kf7 {[%clk 0:00:26]} 49. Rde2 {[%clk 0:00:05.9]} 49... e5 {[%clk
0:00:18.6]} 50. Nf5 {[%clk 0:00:05.7]} 50... Bf8 {[%clk 0:00:19.3]} 51. Nxh4
{[%clk 0:00:05.8]} 51... Bc5 {[%clk 0:00:15.6]} 52. Nf5 {[%clk 0:00:05.9]} 52...
Bb4 {[%clk 0:00:15.9]} 53. Rf1 {[%clk 0:00:05.2]} 53... Ke6 {[%clk 0:00:12.5]}
54. Bg3 {[%clk 0:00:04.8]} 54... Kd7 {[%clk 0:00:11.7]} 55. Ne3 {[%clk
0:00:03.8]} 55... Nxe3+ {[%clk 0:00:09]} 56. Rxe3 {[%clk 0:00:04.7]} 56... Rc2+
{[%clk 0:00:09.1]} 57. Rf2 {[%clk 0:00:05.4]} 57... Rec8 {[%clk 0:00:07.2]} 58.
Ree2 {[%clk 0:00:05.2]} 58... Rc1 {[%clk 0:00:05.7]} 59. h4 {[%clk 0:00:04.9]}
59... Ke6 {[%clk 0:00:05.6]} 60. g5 {[%clk 0:00:02.2]} 60... fxg5 {[%clk
0:00:04.2]} 61. Rxe5+ {[%clk 0:00:02.5]} 61... Kd7 {[%clk 0:00:04]} 62. Rd5+
{[%clk 0:00:02.8]} 62... Kc6 {[%clk 0:00:03.7]} 63. Rxg5 {[%clk 0:00:03.7]}
63... Bc5 {[%clk 0:00:03.3]} 64. Rg6+ {[%clk 0:00:04.2]} 64... Kb5 {[%clk
0:00:03.1]} 65. Rf3 {[%clk 0:00:04]} 65... Rc2+ {[%clk 0:00:03.2]} 66. Kh3
{[%clk 0:00:04.5]} 66... Rxa2 {[%clk 0:00:03.5]} 67. h5 {[%clk 0:00:05]} 67...
Rh8 {[%clk 0:00:02.9]} 68. h6 {[%clk 0:00:05.4]} 68... Bd4 {[%clk 0:00:02.2]}
69. Bf4 {[%clk 0:00:05.5]} 69... Bc5 {[%clk 0:00:02.4]} 70. Kg4 {[%clk
0:00:04.2]} 70... Rg2+ {[%clk 0:00:02.2]} 71. Rg3 {[%clk 0:00:04.7]} 71... Rh2
{[%clk 0:00:02.5]} 72. Rh3 {[%clk 0:00:04.7]} 72... Rxh3 {[%clk 0:00:02.3]} 73.
Kxh3 {[%clk 0:00:04.8]} 73... Kb4 {[%clk 0:00:02.8]} 74. Kg4 {[%clk 0:00:03.7]}
74... Kxb3 {[%clk 0:00:03.2]} 75. Be5 {[%clk 0:00:03.9]} 75... Rh7 {[%clk
0:00:02.3]} 76. Bg7 {[%clk 0:00:01.9]} 76... Be7 {[%clk 0:00:02.2]} 77. Kh5
{[%clk 0:00:02.2]} 77... b5 {[%clk 0:00:02.4]} 78. Rxa6 {[%clk 0:00:02]} 78...
b4 {[%clk 0:00:02.5]} 79. Kg6 {[%clk 0:00:02.5]} 79... Rxg7+ {[%clk 0:00:02.2]}
80. hxg7 {[%clk 0:00:02.8]} 80... Kc4 {[%clk 0:00:01.4]} 81. g8=Q+ {[%clk
0:00:03.7]} 1-0

[Event "*** SCC Grand Prix: Titled Tuesday Blitz"]
[Site "Chess.com"]
[Date "2020.09.29"]
[Round "10"]
[White "wonderfultime"]
[Black "GiantThresher"]
[Result "1/2-1/2"]
[WhiteElo "2911"]
[BlackElo "2779"]
[TimeControl "180+1"]
[EndTime "11:57:47 PDT"]
[Termination "Game drawn by repetition"]

1. d4 {[%clk 0:03:00.9]} 1... d5 {[%clk 0:02:58.4]} 2. Nf3 {[%clk 0:03:01.1]}
2... Nf6 {[%clk 0:02:58]} 3. Bf4 {[%clk 0:02:59.3]} 3... c5 {[%clk 0:02:55.3]}
4. c3 {[%clk 0:02:59.6]} 4... Nc6 {[%clk 0:02:55.8]} 5. e3 {[%clk 0:02:59.9]}
5... Qb6 {[%clk 0:02:55.8]} 6. Qc2 {[%clk 0:03:00.3]} 6... g6 {[%clk 0:02:34.2]}
7. Nbd2 {[%clk 0:03:00.2]} 7... Bf5 {[%clk 0:02:31.4]} 8. dxc5 {[%clk
0:03:00.3]} 8... Qxc5 {[%clk 0:02:30]} 9. Qb3 {[%clk 0:03:01.2]} 9... Na5 {[%clk
0:02:30.1]} 10. Qa4+ {[%clk 0:02:59.2]} 10... Bd7 {[%clk 0:02:15.7]} 11. Qd4
{[%clk 0:02:49.4]} 11... Qxd4 {[%clk 0:02:08.8]} 12. exd4 {[%clk 0:02:43.5]}
12... Bg7 {[%clk 0:01:59.4]} 13. Be2 {[%clk 0:02:41.6]} 13... O-O {[%clk
0:01:59]} 14. O-O {[%clk 0:02:40.9]} 14... Rfc8 {[%clk 0:01:59.6]} 15. Rfe1
{[%clk 0:02:40.5]} 15... Nh5 {[%clk 0:01:58.2]} 16. Bg5 {[%clk 0:02:37.6]} 16...
f6 {[%clk 0:01:56.2]} 17. Be3 {[%clk 0:02:37.7]} 17... Kf7 {[%clk 0:01:45.1]}
18. Nb3 {[%clk 0:02:34.4]} 18... Nc4 {[%clk 0:01:43.8]} 19. Bxc4 {[%clk
0:02:26.9]} 19... dxc4 {[%clk 0:01:42.5]} 20. Nc5 {[%clk 0:02:27.5]} 20... Bc6
{[%clk 0:01:40.8]} 21. Nd2 {[%clk 0:02:03]} 21... b6 {[%clk 0:01:41.1]} 22. Nce4
{[%clk 0:02:01.6]} 22... g5 {[%clk 0:01:39.8]} 23. a4 {[%clk 0:01:42.2]} 23...
h6 {[%clk 0:01:38.9]} 24. f3 {[%clk 0:01:40.2]} 24... Bf8 {[%clk 0:01:26.2]} 25.
g4 {[%clk 0:01:29.8]} 25... Ng7 {[%clk 0:01:24.3]} 26. Bf2 {[%clk 0:01:24.8]}
26... Bd5 {[%clk 0:01:24]} 27. h4 {[%clk 0:01:20.8]} 27... e6 {[%clk 0:01:19.4]}
28. Bg3 {[%clk 0:01:17.9]} 28... Rd8 {[%clk 0:01:19.4]} 29. hxg5 {[%clk
0:01:15.2]} 29... hxg5 {[%clk 0:01:19.3]} 30. f4 {[%clk 0:00:56.7]} 30... gxf4
{[%clk 0:01:11.6]} 31. Bxf4 {[%clk 0:00:57.6]} 31... Kg6 {[%clk 0:01:11.8]} 32.
Rf1 {[%clk 0:00:53.3]} 32... Be7 {[%clk 0:01:11.5]} 33. Rae1 {[%clk 0:00:53.2]}
33... Rh8 {[%clk 0:01:10.6]} 34. Bd6 {[%clk 0:00:50]} 34... Bxd6 {[%clk
0:01:06.3]} 35. Rxf6+ {[%clk 0:00:49.8]} 35... Kh7 {[%clk 0:01:02.8]} 36. Nxd6
{[%clk 0:00:50.2]} 36... Ne8 {[%clk 0:00:59.1]} 37. Nxe8 {[%clk 0:00:33.6]}
37... Raxe8 {[%clk 0:01:00]} 38. Ne4 {[%clk 0:00:19.5]} 38... Kg7 {[%clk
0:00:56.1]} 39. g5 {[%clk 0:00:13.9]} 39... Rh4 {[%clk 0:00:55.6]} 40. Ng3
{[%clk 0:00:07.8]} 40... Rg4 {[%clk 0:00:54.8]} 41. Kf2 {[%clk 0:00:05.9]} 41...
Rxg5 {[%clk 0:00:55.3]} 42. Rf4 {[%clk 0:00:06.3]} 42... Rh8 {[%clk 0:00:55.3]}
43. Rg1 {[%clk 0:00:05.9]} 43... Rh2+ {[%clk 0:00:42.2]} 44. Ke3 {[%clk
0:00:05.7]} 44... Kg6 {[%clk 0:00:43.1]} 45. Rf8 {[%clk 0:00:03.7]} 45... Kg7
{[%clk 0:00:23.9]} 46. Rff1 {[%clk 0:00:03.7]} 46... Rg6 {[%clk 0:00:22.8]} 47.
Ne2 {[%clk 0:00:03.6]} 47... Rh3+ {[%clk 0:00:18.1]} 48. Kd2 {[%clk 0:00:03.8]}
48... Rd3+ {[%clk 0:00:18.3]} 49. Ke1 {[%clk 0:00:04.3]} 49... Re3 {[%clk
0:00:15.7]} 50. Rxg6+ {[%clk 0:00:04.7]} 50... Kxg6 {[%clk 0:00:15.4]} 51. Kd2
{[%clk 0:00:05.6]} 51... Rd3+ {[%clk 0:00:14.7]} 52. Ke1 {[%clk 0:00:06.2]}
52... Re3 {[%clk 0:00:14.9]} 53. Kd2 {[%clk 0:00:06.1]} 53... Rd3+ {[%clk
0:00:15.2]} 54. Kc1 {[%clk 0:00:06.5]} 54... Re3 {[%clk 0:00:14.4]} 55. Rf2
{[%clk 0:00:07.1]} 55... Kg5 {[%clk 0:00:13.9]} 56. Kd2 {[%clk 0:00:05]} 56...
Rd3+ {[%clk 0:00:13.9]} 57. Ke1 {[%clk 0:00:05.6]} 57... Bf3 {[%clk 0:00:12.1]}
58. Rh2 {[%clk 0:00:03.3]} 58... Re3 {[%clk 0:00:08.2]} 59. Kd2 {[%clk
0:00:03.6]} 59... Rxe2+ {[%clk 0:00:08.5]} 60. Rxe2 {[%clk 0:00:04.5]} 60...
Bxe2 {[%clk 0:00:09.4]} 61. Kxe2 {[%clk 0:00:05.2]} 61... Kf4 {[%clk 0:00:10.3]}
62. Kf2 {[%clk 0:00:04.7]} 62... Ke4 {[%clk 0:00:10.8]} 63. Ke2 {[%clk
0:00:05.2]} 63... a6 {[%clk 0:00:10.8]} 64. Kd2 {[%clk 0:00:03.7]} 64... Kf3
{[%clk 0:00:11.2]} 65. Kd1 {[%clk 0:00:04.2]} 65... Ke3 {[%clk 0:00:11.5]} 66.
Ke1 {[%clk 0:00:04.8]} 66... Kd3 {[%clk 0:00:11.2]} 67. Kd1 {[%clk 0:00:05.4]}
67... Ke3 {[%clk 0:00:08.7]} 68. Ke1 {[%clk 0:00:05.6]} 68... Kd3 {[%clk
0:00:07.1]} 69. Kd1 {[%clk 0:00:06]} 69... b5 {[%clk 0:00:06.5]} 70. axb5 {[%clk
0:00:06.2]} 70... axb5 {[%clk 0:00:07.4]} 71. Kc1 {[%clk 0:00:05.5]} 71... Ke2
{[%clk 0:00:07.6]} 72. Kc2 {[%clk 0:00:05.6]} 72... Ke1 {[%clk 0:00:08.1]} 73.
Kc1 {[%clk 0:00:05.8]} 73... Ke2 {[%clk 0:00:08.5]} 74. Kc2 {[%clk 0:00:06.7]}
74... Ke3 {[%clk 0:00:08.8]} 75. Kc1 {[%clk 0:00:05.2]} 75... Kd3 {[%clk
0:00:05.1]} 76. Kd1 {[%clk 0:00:05.2]} 76... Ke3 {[%clk 0:00:03.6]} 77. Kc2
{[%clk 0:00:05.3]} 77... Ke2 {[%clk 0:00:03.9]} 78. Kc1 {[%clk 0:00:03.2]} 78...
Ke1 {[%clk 0:00:04.4]} 79. Kc2 {[%clk 0:00:03.6]} 79... Ke2 {[%clk 0:00:04.9]}
80. Kc1 {[%clk 0:00:04.2]} 80... Ke3 {[%clk 0:00:05.2]} 81. Kc2 {[%clk
0:00:04.5]} 81... Ke2 {[%clk 0:00:04.5]} 1/2-1/2